Cogmind - Beta 17 @@@ ROGUE MODE // 2026.06.23 @ 20:02:32 Player: H0-D32 Result: Destroyed by G-34 Mercenary with Small Laser Performance ------------- Evolutions (0) 0 Regions Visited (1) 200 Robots Destroyed (11) 55 Value Destroyed (274) 274 Prototype IDs (0) 0 Alien Tech Used (0) 0 Bonus (0) 0 TOTAL SCORE: 529 Bonus ------- None Cogmind --------- Core Integrity 0/250 Matter 261/300 Energy 100/100 System Corruption 4% Temperature Cool (6) Movement Core (100) Ox1 Location -10/Materials Parts ------- > --- POWER (1) -------- (None) > --- PROPULSION (2) --- (None) > --- UTILITY (2) ------ Small Storage Unit > --- WEAPON (2) ------- (None) > --- INVENTORY (8) ---- Light Treads Light Treads Light Treads Small Storage Unit Medium Battery (150) Datajack Peak State ------------ > --- POWER ------------ Light Ion Engine > --- PROPULSION ------- Compact Wheel Compact Wheel > --- UTILITY ---------- Small Storage Unit Small Storage Unit > --- WEAPON ----------- Assault Rifle Light Assault Rifle > --- INVENTORY -------- Light Treads Light Treads Medium Laser [Rating: 7] Favorites ----------- Power Light Ion Engine Engine Light Ion Engine Propulsion Compact Wheel Wheel Compact Wheel Utility Small Storage Unit Storage Small Storage Unit Protection Light Armor Plating Weapon Light Assault Rifle Energy Gun Medium Laser Ballistic Gun Light Assault Rifle Special Melee Weapon Datajack Build | -11 -10 ------- Run | Yrd Mat Slots Evolved . | . . Power . | . . Propulsion . | . . Utility . | . . Weapon . | . . Parts Attached 11 | 7 4 Power 1 | 1 . Engine 1 | 1 . Core . | . . Reactor . | . . Propulsion 2 | 2 . Treads . | . . Leg . | . . Wheel 2 | 2 . Hover . | . . Flight . | . . Utility 4 | 1 3 Device . | . . Storage 3 | 1 2 Processor . | . . Hackware . | . . Protection 1 | . 1 Artifact . | . . Weapon 4 | 3 1 Energy Gun 1 | 1 . Energy Cannon . | . . Ballistic Gun 2 | 2 . Ballistic Cannon . | . . Launcher . | . . Special Weapon . | . . Impact Weapon . | . . Slashing Weapon . | . . Piercing Weapon . | . . Special Melee Weapon 1 | . 1 Unidentified Prototypes . | . . Parts Lost 7 | . 7 Power 1 | . 1 Propulsion 2 | . 2 Utility 1 | . 1 Weapon 3 | . 3 Highest Loss Streak 7 | . 7 To Critical Strikes . | . . Average Backups 4 | 1 5 Power . | . . Propulsion 2 | 1 2 Utility 1 | . 1 Weapon . | . 1 Tool/Special . | . . Unused Backups 4 | 1 3 Power . | . . Propulsion 4 | 1 3 Utility . | . . Weapon . | . . Tool/Special . | . . Average Slot Usage (%) 92 | . 92 Engine 12 | . 12 Wheel 25 | . 25 Storage 18 | . 18 Protection 7 | . 7 Ballistic Gun 25 | . 25 Special Melee Weapon 1 | . 1 Peak Build Rating 7 | 6 7 Average Rating 6 | 3 6 On Entrance 3 | . 6 Avg Prop Armor Cover (%) . | . . Naked Turns . | . . Heaviest Build 16 | 11 16 Greatest Support 32 | 32 32 Greatest Overweight (x) 3 | . 3 Average Overweight (x) . | . . Largest Inventory Capacity 8 | 8 8 Average Capacity 7 | 7 8 Most Carried 7 | 5 7 Average Carried 4 | 2 5 Final Capacity 8 | 8 8 Final Carried 6 | 3 6 Class Distribution -------------------- 100% | Mutant Dominant Class ---------------- Mutant | -10/Materials Resources | -11 -10 ----------- Run | Yrd Mat Matter Collected 378 | 205 173 Remotely . | . . Salvage Created 342 | . 342 Parts 23 | . 23 Haulers Intercepted . | . . Recyclers Shooed . | . . Parts Field Recycled . | . . Retrieved Matter . | . . Parts Self-Destructed . | . . Prevented . | . . Parts Restored . | . . Kills | -11 -10 ------- Run | Yrd Mat Combat Hostiles Destroyed 8 | . 8 Guns 8 | . 8 Classes Destroyed 3 | . 3 Watcher 3 | . 3 Swarmer 3 | . 3 Grunt 5 | . 5 Best Kill Streak 3 | . 3 Combat Bots Only 3 | . 3 Max Kills in Single Turn 2 | . 2 Gunslinging 1 | . 1 Exploded . | . . Melee . | . . Uniques/NPCs Destroyed . | . . Combat | -11 -10 -------- Run | Yrd Mat Hostile Shots Fired 81 | . 81 Missed 15 | . 15 Hits 66 | . 66 Projectile 66 | . 66 Damage Taken 779 | . 779 Core 251 | . 251 Absorbed by Shields . | . . Regen/Repaired (Parts) 36 | . 36 Core Remaining (%) 100 | 100 . Volleys Fired 46 | . 46 Largest 2 | . 2 Hottest 50 | . 50 Shots Fired 65 | . 65 Gun 65 | . 65 Cannon . | . . Launcher . | . . Special . | . . Kinetic 57 | . 57 Thermal 8 | . 8 Explosive . | . . Electromagnetic . | . . Robot Hit Streak 6 | . 6 Robot Miss Streak 3 | . 3 Penetration Max . | . . Secondary Targets 1 | . 1 Max Gunslinging Chain 1 | . 1 Shots Hit Robots 47 | . 47 Core Hits 24 | . 24 Critical Kills . | . . Critical Parts Destroyed . | . . Critical Strikes . | . . Melee Attacks 5 | . 5 Impact . | . . Slashing . | . . Piercing . | . . Sneak Attacks . | . . Combat Hostiles . | . . Follow-up Attacks . | . . Damage Inflicted 474 | . 474 Guns 474 | . 474 Cannons . | . . Explosions . | . . Melee . | . . Ramming . | . . Kinetic 375 | . 375 Thermal 99 | . 99 Explosive . | . . Electromagnetic . | . . Impact . | . . Slashing . | . . Piercing . | . . Highest Corruption 4 | . 4 Average Corruption 3 | . 3 Corruption Purged . | . . Corruption Blocked . | . . Effects 4 | . 4 Matter Fused 1 | . 1 Energy Discharges 1 | . 1 Data Loss (major) 1 | . 1 Misfires 1 | . 1 Overload Shots . | . . Overflow Damage . | . . Projectiles . | . . Explosions . | . . Melee . | . . Knockbacks . | . . Impact . | . . Kinetic . | . . Secondary . | . . Self-Inflicted Damage . | . . Shots . | . . Rammed . | . . Targets Rammed . | . . Kicked . | . . Crushed . | . . Highest Temperature 91 | . 91 Average Temperature 23 | . 23 Received Heat Transfer 426 | . 426 Siege Activations . | . . Martial Activations . | . . Shielding Activations . | . . Robots Disrupted . | . . Combat Hostiles . | . . Robots Corrupted . | . . Combat Hostiles . | . . Parts Fried . | . . Impact Corruptions . | . . Robots Melted . | . . Combat Hostiles . | . . Parts Melted . | . . Heat Transferred 296 | . 296 Parts Sabotaged . | . . Parts Stolen . | . . Parts Stripped . | . . Power Chain Reactions . | . . Alert | -11 -10 ------- Run | Yrd Mat Maximum Alert Level . | . . Low Security (%) 100 | 100 100 Level 1 . | . . Level 2 . | . . Level 3 . | . . Level 4 . | . . Level 5 . | . . High Security . | . . Max Security . | . . Peak Influence 62 | . 62 Initial . | . . Average 13 | . 14 Influence Increases 233 | . 233 Destroy 0b10 Robot/C 160 | . 160 Destroy 0b10 Robot/NC 15 | . 15 Destroy Leader 46 | . 46 Successful Hack 12 | . 12 Influence Decreases 201 | . 201 Time Decay 143 | . 143 Lost Part 58 | . 58 Squads Dispatched 2 | . 2 Investigation . | . . Extermination . | . . Reinforcement 2 | . 2 Assault . | . . Garrison . | . . Intercept . | . . Searches Triggered . | . . Construction Impeded . | . . Haulers Reinforced . | . . Active Scanning Responses . | . . Cargo Convoy Interrupts . | . . Stealth | -11 -10 --------- Run | Yrd Mat Distress Signals . | . . Communications Jammed . | . . Distress Signals . | . . Times Spotted 18 | . 18 Peak Tracking Total 4 | . 4 Tactical Retreats . | . . Traps | -11 -10 ------- Run | Yrd Mat Traps Triggered 2 | . 2 Indirectly . | . . Trap Hack Attempts . | . . Triggered . | . . Disarmed . | . . Reprogrammed . | . . Reused . | . . Traps Extracted . | . . Installed . | . . Triggered . | . . Machines | -11 -10 ---------- Run | Yrd Mat Machines Disabled . | . . Max in Single Turn . | . . Machines Repaired . | . . Machines Dismantled . | . . Machines Sabotaged . | . . Overloaded Fab Kills . | . . Hacking | -11 -10 --------- Run | Yrd Mat Machines Accessed 6 | . 6 Terminals 3 | . 3 Fabricators . | . . Repair Stations 1 | . 1 Recycling Units 2 | . 2 Scanalyzers . | . . Garrison Access . | . . Total Hacks 18 | . 18 Successful 12 | . 12 Failed 6 | . 6 Catastrophic . | . . Database Lockouts . | . . Manual 1 | . 1 Terminals 10 | . 10 Fabricators . | . . Repair Stations 5 | . 5 Recycling Units 3 | . 3 Scanalyzers . | . . Garrison Access . | . . Terminal Hacks 5 | . 5 Terminal Index 1 | . 1 Alert Level 2 | . 2 Investigation Status 1 | . 1 Zone Layout 1 | . 1 Fabricator Hacks . | . . Repair Station Hacks 3 | . 3 Scan Component 2 | . 2 Repair 1 | . 1 Recycling Unit Hacks 3 | . 3 Report Inventory 2 | . 2 Retrieve Components 1 | . 1 Scanalyzer . | . . Garrison Access Hacks . | . . Unauthorized Hacks 1 | . 1 Terminals 1 | . 1 Assimilate 1 | . 1 Fabricators . | . . Repair Stations . | . . Recycling Units . | . . Scanalyzers . | . . Garrison Access . | . . Data Cores Recovered . | . . Used . | . . Hacking Detections 5 | . 5 Full Trace Events 2 | . 2 Feedback Events . | . . Feedback Blocked . | . . Robot Schematics Acquired . | . . Robots Built . | . . Authchips . | . . Time . | . . Total Robot Build Rating . | . . Part Schematics Acquired . | . . Parts Built . | . . Authchips . | . . Time . | . . Total Part Build Rating . | . . Part Studies Acquired . | . . Parts Repaired 1 | . 1 Time 26 | . 26 Parts Recycled . | . . Recycled Matter . | . . Retrieved Matter . | . . Retrieved Components 1 | . 1 Parts Scanalyzed . | . . Part Schematics Acquired . | . . Parts Damaged . | . . Bothacking | -11 -10 ------------ Run | Yrd Mat Used RIF Installer . | . . Robots Hacked 2 | . 2 Non-combat . | . . Combat 2 | . 2 Robot Hacks Applied 2 | . 2 parse_system 2 | . 2 Relay Couplers Released . | . . Fabnet Peak Effective % . | . . Robots Rewired . | . . Allies Hacked . | . . Hacks Repelled . | . . Allies | -11 -10 -------- Run | Yrd Mat Total Allies . | . . Largest Group . | . . Highest-Rated Group . | . . Highest-Rated Ally . | . . Total Orders . | . . Ally Attacks . | . . Total Damage . | . . Kills . | . . Allies Corrupted . | . . Allies Melted . | . . Intel | -11 -10 ------- Run | Yrd Mat Active Infowar (turns) . | . . Robot Analysis Total . | . . Derelict Logs Recovered . | . . Drone Launches . | . . Drone Recoveries . | . . Exploration | -11 -10 ------------- Run | Yrd Mat Turns Passed 697 | 64 633 Spaces Moved 432 | 50 382 Core 14 | 8 6 Treads . | . . Legs . | . . Wheels 418 | 42 376 Hover . | . . Flight . | . . Fastest Speed 50 | 50 100 Average Speed 100 | 92 101 Slowest Speed 200 | 100 200 Overloaded Moves . | . . Propulsion Burnouts . | . . Robots Hopped . | . . Potential Cave-ins . | . . Cave-ins Triggered . | . . Exploration Rate (%) 27 | 3 52 Regions Visited 1 Branch Regions . Pre-discovered Areas . | . . Known Exits Taken . | . . Unknown Exits Taken 1 | 1 . Scrap Searched . | . . Spaces Dug . | . . Terrain Destroyed . | . . Melee . | . . Projectile . | . . AOE . | . . Terrain Rammed . | . . Walls Destroyed . | . . Machines Disabled . | . . Actions | -11 -10 --------- Run | Yrd Mat Total 638 | 68 570 Wait 118 | . 118 Move 431 | 49 382 Hop . | . . Pick Up 16 | 10 6 Fast Attach . | . . Attach 14 | 7 7 Detach 6 | 1 5 Swap 1 | . 1 Drop 1 | 1 . Fire 46 | . 46 Melee 5 | . 5 Ram . | . . Kick . | . . Crush . | . . Escape Stasis . | . . Rewire . | . . Trap . | . . Miscellaneous . | . . Route ------- -11/Scrapyard -10/Materials (discovered 2 exits: [*Mat] / [*Min]) History --------- Turn | Location | Event 29 | -11/Scrapyard | Discovered new exit (range 15) 65 | -11/Scrapyard | Entered Materials 181 | -10/Materials | Discovered new exit (range 14) 328 | -10/Materials | Repaired Lgt. Armor Plating 351 | -10/Materials | Build established: Mutant 400 | -10/Materials | Discovered new exit (range 16) 677 | -10/Materials | Core integrity fell below 50% 689 | -10/Materials | Core integrity fell below 20% 698 | -10/Materials | Destroyed by G-34 Mercenary with Small Laser Last Messages --------------- 00637_ Lgt. Ion Engine destroyed. 00640_ G-34 Mercenary destroyed. 00642_ Acquired 30 matter. 00643_ O-16 Technician: "IFF HANDSHAKE FAILED. SECURING TERMINAL." 00644_ R-06 Scavenger collects Sml. Laser. 00646_ Acquired 56 matter. 00649_ R-06 Scavenger collects Heat Sink. 00650_ ALERT: Hostiles spotted, dispatching reinforcements to Terminal M005. 00652_ R-06 Scavenger collects Aluminum Leg. 00658_ Lgt. Armor Plating destroyed. 00674_ Lgt. Assault Rifle destroyed. 00676_ Assault Rifle destroyed. 00677_ G-47 Trooper destroyed. 00679_ R-06 Scavenger collects Particle Gun. 00683_ G-34 Mercenary destroyed. 00688_ U-05 Engineer works on Matter Pump. 00693_ Med. Laser destroyed. 00694_ U-05 Engineer works on Matter Pump. Map ----- +----------------------------------------------------+ | # """"" + "Y" #?????????????????????????? | | ### """"" # """ #?????????????????????????? | | #?# """"" # #?????????????????????????? | | #?# """ ########?????????????????????????? | | ##### #????????????????????????????????? | | ] ########?????????????????????????? | | # #?????????????????????????? | | # #?????????????????????????? | | #######" "### # #?????????????????????????? | | #?????#"R"#?# # #?????????????????????????? | | #?????#"""#?# + "T" #?????????????????????????? | | #?????#####?# # #?????????????????????????? | | #????????#### ############?????????????????????? | | #????????#""" ## #?????????????????????? | | #????????#" ## #?????????????????????? | | #????????#"| ## #?????????????????????? | | #????????#"" < ## #?????????????????????? | | #????????#"! ## ^ #?????????????????????? | | #????????#" ## ^ #?????????????????????? | | #????????#""" ## #?????????????????????? | | #############%[ ### = #?????????????????????? | | # # #?######+###?????????????????????? | | # + ####### #??????????????????????? | | # # #??????????????????????? | | # """ """ # #??????????????????????? | | # """ """ # @#??????????????????????? | | # """ """ # ==#??????????????????????? | | # # %%#??????????????????????? | | ############# u gg ????????????????? | | ????????????# < #####??????????????????? | | ????????????###### #??????????????????????? | | ?????????????????# #??????????????????????? | | ?????????????????# ?????????????????????? | | ?????????????????# """ ???????????????????? | | ?????????????????# """ ??????????????????? | | ?????????????????# """ ???????????????????? | | ?????????????????# ???????????????????? | | ?????????????????# ? ????????????????????? | | ?????????????????? ??????????????????????? | | ?????????????????? g ??????????????????????? | | ??????????????????? ??????????????????????? | | ???????????????????? ???????????????????????????? | | ?????????????????????????????????????????????????? | | ?????????????????????????????????????????????????? | | ?????????????????????????????????????????????????? | | ?????????????????????????????????????????????????? | | ?????????????????????????????????????????????????? | | ?????????????????????????????????????????????????? | | ?????????????????????????????????????????????????? | | ?????????????????????????????????????????????????? | +----------------------------------------------------+ Best States ------------- Heat Dissipation 25 Energy Generation 10 Energy Capacity 275 Matter Stores 280 Matter Capacity 300 Sight Range 16 Terrain Scan Density 10 Armor Coverage 150 Evasion (%) 40 Item Schematics ----------------- None Robot Schematics ------------------ None Fabricated ------------ Nothing Repaired ---------- Lgt. Armor Plating | 60% | -10/Materials Studied --------- None Alien Tech Used ----------------- None Achievements -------------- None Challenges ------------ None Game ------ Seed FlyingCobblerRigger Manual? 0 Play Time 00:11:50 Cumulative 34.5 hours Start 2026.06.23 @ 19:52:30 End 2026.06.23 @ 20:02:32 Sessions 1 Manual Loads 0 Difficulty Rogue Special Mode None Game No. 46 Rogue 14 Adventurer 32 Explorer 0 Win Type - Total 0 Types 0/0/0/0/0/0/0/0/0/0 Lore% 15 Gallery% 21 Achievement% 13 Wizard Run 0 Options --------- Layout 1 ASCII 0 Keyboard 0 Movement Mouse Keybinds 0 Fullscreen 1 Font 24/Smallcaps Map View 50x35 Zoom Use 0% Tactical HUD 1 Map Filters NONE Filters NONE Steam 1 RUN: ddc2f0fb-a2a4-428e-b76d-e53cee7b185c